[Event "101st Irish Championship 2022"]
[Site "Dublin"]
[Date "2022.07.05"]
[Round "1.1"]
[White "O`Gorman, Tom"]
[Black "Kennedy, John"]
[Result "1-0"]
[ECO "D34"]
[WhiteElo "2401"]
[BlackElo "2047"]
[Annotator "TA"]
[PlyCount "57"]
[EventDate "2022.07.05"]
[EventType "swiss"]
[EventCountry "IRL"]
[SourceTitle "playchess.com"]
[Source "ChessBase"]
[SourceQuality "1"]
[TimeControl "40/6300+30:1800+30"]

{[%evp 21,57,8,35,26,33,28,25,20,38,21,6,15,22,0,29,31,38,21,41,33,31,32,447,431,569,568,915,853,1494,1488,1537,1532,1678,1614,1610,1605,2209,1479]} 1. d4 {[%emt 0:00:26]} d5 {[%emt 0:00:04]} 2. c4 {[%emt 0:00:26]} e6 {[%emt 0:00:04]} 3. Nc3 {[%emt 0:00:15]} c5 {[%emt 0:00:04]} 4. cxd5 {[%emt 0:00:29]} exd5 {[%emt 0:00:05]} 5. Nf3 {[%emt 0:00:37]} Nc6 {[%emt 0:00:08]} 6. g3 {[%emt 0:01:20]} Nf6 {[%emt 0:00:06]} 7. Bg2 {[%emt 0:00:10]} Be7 {[%emt 0:00:05]} 8. O-O {[%emt 0:00:59]} O-O {[%emt 0:00:04]} 9. dxc5 {[%emt 0:02:46]} Bxc5 {[%emt 0:00:06]} 10. Na4 {[%emt 0:01:16]} Be7 {[%emt 0:00:24]} 11. Be3 {[%emt 0:00:39]} Be6 {[%emt 0:00:14]} 12. Rc1 {[%emt 0:01:51] D34: Tarrasch Defence: 6 g3 Nf6 7 Bg2 Be7.} Qd7 {[%emt 0:00:19]} 13. Nc5 {[%emt 0:01:25]} Bxc5 {[%emt 0:00:06]} 14. Bxc5 {[%emt 0:00:15] White has an edge.} Rfe8 {[%emt 0:00:04]} 15. Re1 {[%emt 0:04:08]} Bh3 {[%emt 0:08:17]} 16. Bh1 {[%emt 0:01:47]} Ne4 {[%emt 0:05:09]} 17. Bd4 {[%emt 0:32:51] [#]} Re6 $146 {[%emt 0:07:21]} ({Predecessor:} 17... Rac8 18. a3 a6 19. b4 h6 20. Bc5 Qf5 21. Bd4 Rcd8 22. Nh4 Qe6 23. Nf3 g5 {½-½ (64) Schaefer,R (2102)-Barthel,A (2229) Reykjavik 2014}) 18. Be3 {[%emt 0:03:47]} Rae8 {[%emt 0:28:26]} 19. Qa4 {[%emt 0:06:17]} Rg6 {[%emt 0:18:09]} 20. Red1 {[%emt 0:07:12]} Qd6 {[%emt 0:05:55][%cal Re4g3] [#] Threatens to win with ...Nxg3!} 21. Qa3 {[%emt 0:16:25]} Nxg3 $2 {[%emt 0:11:42][%mdl 8192] This costs Black the game.} 22. hxg3 $18 {[%emt 0:01:49] White is clearly winning.} Rxg3+ {[%emt 0:00:45]} 23. Kh2 {[%emt 0:00:35]} Rg2+ {[%emt 0:06:50]} 24. Kxh3 {[%emt 0:00:14]} Qg6 {[%emt 0:01:18]} 25. Bxg2 {[%emt 0:00:17]} Qh5+ {[%emt 0:00:23]} 26. Kg3 {[%emt 0:01:10]} Re4 {[%emt 0:06:03] [#]} 27. Rd4 $1 {[%emt 0:00:27] And now Rxe4 would win.} Qg4+ {[%emt 0:02:02]} (27... h6 28. Rxe4) 28. Kh2 {[%emt 0:00:08]} Nxd4 {[%emt 0:00:05]} 29. Nxd4 {[%emt 0:00:44] Weighted Error Value: White=0.07 (flawless) /Black=0.80} 1-0

[Event "101st Irish Championship 2022"]
[Site "Dublin"]
[Date "2022.07.05"]
[Round "1.2"]
[White "O`Gorman, Alice"]
[Black "Baburin, Alexander"]
[Result "0-1"]
[ECO "D35"]
[WhiteElo "2043"]
[BlackElo "2400"]
[Annotator "TA"]
[PlyCount "66"]
[EventDate "2022.07.05"]
[EventType "swiss"]
[EventCountry "IRL"]
[SourceTitle "playchess.com"]
[Source "ChessBase"]
[SourceQuality "1"]
[TimeControl "40/6300+30:1800+30"]

{[%evp 15,66,11,22,0,0,0,0,0,0,0,0,0,-3,-21,0,0,0,0,0,0,0,0,0,14,45,0,0,0,0,0,0,0,4,0,107,-108,58,-175,46,53,113,-100,0,-786,-793,-793,-775,-2518,-1141,-29988,-29989,-29993,-29994]} 1. c4 {[%emt 0:00:02]} e6 {[%emt 0:00:37]} 2. Nc3 {[%emt 0:00:05]} d5 {[%emt 0:00:07]} 3. d4 {[%emt 0:00:05]} Nf6 {[%emt 0:01:04]} 4. cxd5 {[%emt 0:00:17]} exd5 {[%emt 0:00:31]} 5. Bg5 {[%emt 0:00:06]} c6 {[%emt 0:02:19]} 6. e3 {[%emt 0:00:16]} Nbd7 {[%emt 0:09:18][%cal Bb8d7,Bd7f8,Bf8e6,Be6f4][%mdl 32]} 7. Bd3 {[%emt 0:00:38]} Bd6 {[%emt 0:02:17]} 8. Nf3 {[%emt 0:04:12]} Nf8 {[%emt 0:02:46]} 9. e4 {[%emt 0:05:07] 9.0-0 is a critical line. D35: Queen's Gambit Declined: Exchange Variation.} dxe4 {[%emt 0:02:05]} 10. Nxe4 {[%emt 0:01:13]} Bb4+ {[%emt 0:12:20] [#]} 11. Kf1 $146 {[%emt 0:14:12][%cal Od4d5] The position is equal.} ({Predecessor:} 11. Nc3 Qe7+ 12. Ne5 Ne6 13. Be3 Nd5 14. Qc2 Nxd4 15. Bxd4 f6 16. O-O fxe5 17. Rae1 {1-0 (24) Hernanz Villaoslada,J (1705)-Huerta Navarro,E (1948) Madrid 2009}) 11... Be7 {[%emt 0:01:15] White must now prevent ...Nxe4.} 12. Qc2 {[%emt 0:07:38]} Ne6 {[%emt 0:23:03]} 13. Bxf6 {[%emt 0:13:38]} Bxf6 {[%emt 0:00:14]} 14. Re1 {[%emt 0:08:28]} g6 {[%emt 0:09:57]} (14... Be7 $5 {[%cal Re6d4]}) 15. h4 {[%emt 0:06:49]} O-O $1 {[%emt 0:05:35]} (15... Bxd4 16. Bc4 Bf6 17. h5 $14 (17. Nxf6+ Qxf6 18. Ne5 O-O $14)) 16. Nxf6+ {[%emt 0:05:44]} Qxf6 {[%emt 0:00:08]} 17. h5 $1 {[%emt 0:04:39]} Nf4 {[%emt 0:05:35]} 18. hxg6 {[%emt 0:08:54]} hxg6 {[%emt 0:04:09]} 19. Be4 {[%emt 0:05:14]} Be6 {[%emt 0:09:09]} 20. Qd2 {[%emt 0:13:27]} (20. g3 $5 {[%cal Rg3f4]} Nd5 21. Qc1 $11) 20... Rad8 {[%emt 0:03:56]} 21. g3 {[%emt 0:01:45]} Bc4+ {[%emt 0:00:57]} 22. Kg1 {[%emt 0:00:29]} Ne6 {[%emt 0:00:08][%cal Re6d4]} (22... Nh5 23. Qb4 Bb5 24. Ne5 $16) 23. b3 {[%emt 0:01:43]} (23. Qh6 Qg7 24. Qe3 Nxd4 $15) 23... Bd5 {[%emt 0:02:06]} 24. Ne5 {[%emt 0:01:28]} Rfe8 {[%emt 0:03:20]} (24... Qg5 $11 25. Qc3 Kg7) 25. Ng4 $2 {[%emt 0:01:26]} (25. Qh6 Qg7 26. Bxd5 Qxh6 27. Rxh6 Rxd5 $17) (25. Bxd5 $16 {is forced if you want to stay better.} Rxd5 26. Ng4 (26. Qh6 Qg7 $17)) 25... Qg7 $2 {[%emt 0:01:42]} (25... Qg5 $17 26. Qe3 (26. Qxg5 $2 Nxg5 27. Nf6+ Kg7 $19) 26... Bxe4 27. Qxe4 Ng7) 26. Qb4 {[%emt 0:00:36]} (26. Bxd5 $14 {is the one way to stay ahead.} Rxd5 27. Qb4) 26... c5 $2 {[%emt 0:04:11]} (26... Qxd4 $19 27. Qxd4 Nxd4) 27. dxc5 $14 {[%emt 0:00:19]} a5 {[%emt 0:01:26]} ({Better is} 27... Bxe4 $14 28. Qxe4 Nc7) 28. Qa3 $2 {[%emt 0:00:27]} (28. Qxa5 $16 {And now Bxd5 would win.} Bxe4 29. Rxe4) 28... Qc3 {[%emt 0:01:08]} (28... Bxe4 $17 29. Rxe4 Rd1+ 30. Kg2 Rxh1 31. Kxh1 f5) 29. Re3 $2 {[%emt 0:01:53][%mdl 8192] [#]} (29. Qc1 $11 Qxc1 30. Rxc1) 29... Bxe4 $1 $19 {[%emt 0:00:49][%mdl 64] Deflection} 30. Rxe4 {[%emt 0:00:58]} Qf3 {[%emt 0:01:31] ( -> ...Rd1+)} 31. Kh2 {[%emt 0:01:50]} Rd2 {[%emt 0:01:14]} (31... Rd5 $142 32. Nf6+ Qxf6) 32. Rf1 {[%emt 0:01:22]} Kg7 {[%emt 0:00:24]} 33. Qxa5 {[%emt 0:01:10]} Rh8+ {[%emt 0:00:35] Weighted Error Value: White=0.94/Black=0.59} 0-1

[Event "101st Irish Championship 2022"]
[Site "Dublin"]
[Date "2022.07.05"]
[Round "1.3"]
[White "Kanyamarala, Tarun"]
[Black "Mats, Diana"]
[Result "1-0"]
[ECO "D53"]
[WhiteElo "2379"]
[BlackElo "2028"]
[Annotator "TA"]
[PlyCount "129"]
[EventDate "2022.07.05"]
[EventType "swiss"]
[EventCountry "IRL"]
[SourceTitle "playchess.com"]
[Source "ChessBase"]
[SourceQuality "1"]
[TimeControl "40/6300+30:1800+30"]

{[%evp 17,129,14,31,10,21,6,16,20,25,33,81,73,96,96,94,92,100,96,92,87,92,93,99,96,90,75,177,179,180,182,214,169,222,227,221,217,222,226,350,231,236,-74,225,229,245,236,312,317,314,303,309,310,360,357,350,363,362,350,358,331,322,283,325,325,383,376,383,326,383,281,519,323,370,250,562,489,723,716,587,233,212,189,150,107,487,518,1408,1361,1882,2898,2912,2415,1899,2102,29952,29952,29972,29973,29973,29974,29974,29975,29974,29975,29975,29976,29990,29991,29991,29974,29973,29973,29971,29969]} 1. d4 {[%emt 0:21:20]} Nf6 {[%emt 0:00:45]} 2. c4 {[%emt 0:00:17]} e6 {[%emt 0:00:16]} 3. Nc3 {[%emt 0:00:09]} d5 {[%emt 0:01:11]} 4. Nf3 {[%emt 0:03:16]} c6 {[%emt 0:01:01]} 5. Bg5 {[%emt 0:00:08]} h6 {[%emt 0:01:45]} 6. Bh4 {[%emt 0:00:24]} Be7 {[%emt 0:01:09]} 7. e3 {[%emt 0:00:22]} Nbd7 {[%emt 0:01:04]} 8. Bd3 {[%emt 0:01:41]} dxc4 {[%emt 0:01:41]} 9. Bxc4 {[%emt 0:00:12]} b5 {[%emt 0:02:39]} 10. Bd3 {[%emt 0:00:20] D53: Queen's Gambit Declined: 4 Bg5 Be7: Early deviations.} a6 {[%emt 0:00:27] has lost popularity (10...Bb7).} 11. Bxf6 {[%emt 0:02:38]} Nxf6 {[%emt 0:01:23] [#]} 12. Ne4 $146 {[%emt 0:00:30] The position is equal.} ({Predecessor:} 12. O-O Bb7 13. Ne4 Nd7 14. Qe2 Qb6 15. a4 O-O 16. Rfc1 Rfd8 17. axb5 cxb5 18. Ng3 {0-1 (54) Hejny,B (1734)-Szczepanski,Z (2499) LSS email 2015}) 12... Bb4+ {[%emt 0:09:25]} 13. Ke2 {[%emt 0:02:27]} Nd5 {[%emt 0:07:22]} (13... Nd7 $14) 14. Qc2 {[%emt 0:05:21]} Bd7 {[%emt 0:05:53]} 15. a3 {[%emt 0:07:04]} Be7 {[%emt 0:01:37]} 16. Nc5 {[%emt 0:00:56] White is more active.} Bxc5 {[%emt 0:05:58]} 17. Qxc5 {[%emt 0:00:47]} Qe7 {[%emt 0:00:23]} 18. Rac1 $36 {[%emt 0:03:44][%mdl 2048] White is in control.} Qxc5 {[%emt 0:02:36]} 19. Rxc5 {[%emt 0:00:21]} f6 {[%emt 0:00:40] Prevents Ne5.} 20. Nd2 {[%emt 0:05:21][%cal Bf3d2,Bd2b3,Bb3a5,Ba5b7][%mdl 32]} Ke7 {[%emt 0:03:32]} 21. Nb3 {[%emt 0:03:27]} e5 {[%emt 0:11:35]} (21... a5 $16) 22. dxe5 $18 {[%emt 0:05:05]} fxe5 {[%emt 0:04:10]} 23. Na5 {[%emt 0:00:25]} Kd6 {[%emt 0:04:55]} 24. Rhc1 {[%emt 0:01:18]} Rac8 {[%emt 0:01:09]} (24... b4 $142 25. Kf1 (25. Nxc6 bxa3 26. bxa3 Rhc8 $16) 25... Rhc8) 25. Be4 {[%emt 0:05:43]} Rhf8 {[%emt 0:04:25]} 26. b4 {[%emt 0:00:53]} Ne7 {[%emt 0:01:56]} 27. Rd1+ {[%emt 0:06:02]} Ke6 {[%emt 0:03:21]} (27... Kc7 $142 28. Rxe5 Rce8) 28. Nb7 {[%emt 0:01:10]} Rc7 {[%emt 0:03:31] [#]} 29. Rd6+ $1 {[%emt 0:02:07]} Kf7 {[%emt 0:00:10]} 30. Na5 {[%emt 0:00:38]} Nc8 {[%emt 0:03:40]} 31. Rd3 {[%emt 0:07:12][%cal Bd6d3,Bd3c3,Bc3c5][%mdl 32]} Re8 {[%emt 0:16:31]} 32. Nxc6 {[%emt 0:03:44]} Bxc6 {[%emt 0:01:03]} 33. Bxc6 {[%emt 0:02:40]} (33. Rxc6 Rxc6 34. Bxc6 Re7 35. Bd5+ Ke8 36. Bc6+ Kf7 37. Bd5+ Ke8 $18) 33... Ree7 {[%emt 0:00:25]} 34. Rdc3 {[%emt 0:00:17] And now Bd5+ would win.} Kf6 {[%emt 0:02:02] [#]} 35. Bxb5 $1 {[%emt 0:00:58][%mdl 512]} Rxc5 {[%emt 0:01:55]} 36. Rxc5 {[%emt 0:00:36]} axb5 {[%emt 0:00:12]} 37. Rxc8 {[%emt 0:00:11][%mdl 4096] Endgame KR-KR} Ra7 {[%emt 0:00:41]} 38. Rc6+ {[%emt 0:01:26]} Kf5 {[%emt 0:01:37]} 39. Rc3 {[%emt 0:00:32]} g5 {[%emt 0:01:17]} 40. f3 {[%emt 0:09:28][%cal Bf2f3,Bf3f4][%mdl 32]} h5 {[%emt 0:01:21]} 41. e4+ {[%emt 0:34:31]} Ke6 {[%emt 0:31:00]} 42. Ke3 {[%emt 0:00:34]} h4 {[%emt 0:00:49]} 43. g3 {[%emt 0:00:24]} h3 $2 {[%emt 0:01:03]} (43... hxg3 {was necessary.} 44. hxg3 Ra8) 44. f4 {[%emt 0:01:37]} g4 {[%emt 0:00:52]} 45. f5+ {[%emt 0:06:44]} Kf7 $2 {[%emt 0:00:11]} (45... Kf6 46. Ke2 Ra6) 46. Kd2 {[%emt 0:00:37]} Ra6 {[%emt 0:03:26]} (46... Rd7+ $142 47. Rd3 Ra7) 47. Kc2 {[%emt 0:00:00]} Kf6 {[%emt 0:00:00]} 48. Rd3 $2 {[%emt 0:00:00]} (48. Kb2 Rd6 49. a4 bxa4 50. b5) 48... Rc6+ {[%emt 0:00:00]} 49. Kb3 {[%emt 0:00:00]} Rc1 {[%emt 0:00:00]} 50. Re3 {[%emt 0:00:00] Inhibits Re1. Strongly threatening Re2.} Rg1 $2 {[%emt 0:00:00][%mdl 8192] [#]} (50... Rd1 $16 {is more resistant.}) 51. Re2 $1 {[%emt 0:00:00] Threatens to win with a4.} Rg2 {[%emt 0:00:00]} (51... Ke7 $142 52. a4 bxa4+ 53. Ka3 (53. Kxa4 Rg2 $11) 53... Kd6 54. Rd2+ (54. Kxa4 Rg2 $11) 54... Kc7) 52. Rb2 {[%emt 0:00:00] Hoping for a4.} Rg1 {[%emt 0:00:00]} 53. a4 {[%emt 0:00:00]} bxa4+ {[%emt 0:00:00]} 54. Kxa4 {[%emt 0:00:00] White threatens b5 and mate.} Ra1+ {[%emt 0:00:00]} 55. Kb5 {[%emt 0:00:06] Kc6 is the strong threat.} Re1 {[%emt 0:00:00]} 56. Kc6 {[%emt 0:00:34] White mates.} Rxe4 {[%emt 0:00:00]} 57. b5 {[%emt 0:00:13][%cal Bb4b5,Bb5b6,Bb6b7][%mdl 32]} Rc4+ {[%emt 0:00:00]} 58. Kd7 {[%emt 0:00:08]} Rd4+ {[%emt 0:00:00]} 59. Ke8 {[%emt 0:00:15]} e4 {[%emt 0:00:00]} 60. b6 {[%emt 0:00:34]} e3 {[%emt 0:00:00]} 61. b7 {[%emt 0:01:19]} Re4+ {[%emt 0:00:00]} 62. Kf8 {[%emt 0:01:18]} e2 {[%emt 0:00:00]} 63. Rxe2 {[%emt 0:06:56]} Rb4 {[%emt 0:00:00]} 64. Re7 {[%emt 0:00:00]} Kxf5 {[%emt 0:00:00]} 65. Ke8 {[%emt 0:00:00] Weighted Error Value: White=0.27 (precise) /Black=0.57} 1-0

[Event "101st Irish Championship 2022"]
[Site "Dublin"]
[Date "2022.07.05"]
[Round "1.4"]
[White "Melaugh, Gavin"]
[Black "Li, Henry"]
[Result "1/2-1/2"]
[ECO "C56"]
[WhiteElo "2020"]
[BlackElo "2319"]
[Annotator "TA"]
[PlyCount "51"]
[EventDate "2022.07.05"]
[EventType "swiss"]
[EventCountry "IRL"]
[SourceTitle "playchess.com"]
[Source "ChessBase"]
[SourceQuality "1"]
[TimeControl "40/6300+30:1800+30"]

{[%evp 13,51,-32,-28,-23,16,-83,-65,-68,0,0,0,0,0,0,0,0,0,-9,-8,-19,2,0,0,-6,20,15,17,0,28,12,20,22,66,83,86,33,50,47,47,42]} 1. e4 {[%emt 0:00:03]} e5 {[%emt 0:00:22][%cal Be7e5,Be5d4][%mdl 32]} 2. Nf3 {[%emt 0:00:06]} Nc6 {[%emt 0:00:06]} 3. d4 {[%emt 0:00:07]} exd4 {[%emt 0:00:23]} 4. Bc4 {[%emt 0:00:09]} Nf6 {[%emt 0:00:26]} 5. Ng5 {[%emt 0:00:06]} d5 {[%emt 0:02:38]} 6. exd5 {[%emt 0:00:05]} Qe7+ {[%emt 0:07:04]} 7. Kf1 {[%emt 0:00:08]} Ne5 $1 {[%emt 0:04:08]} 8. Qxd4 {[%emt 0:00:06] C56: Two Knights: 4 d4 exd4 5 0-0 Nxe4.} Bf5 {[%emt 0:13:42]} 9. Bf4 {[%emt 0:08:13]} (9. Bb5+ $11 c6 10. Nc3 cxb5 11. Bf4) 9... Nxc4 $17 {[%emt 0:05:32]} 10. Qxc4 {[%emt 0:00:20] [#] And now Na3 would win. Black is slightly better.} Qc5 {[%emt 0:06:14]} (10... h6 $15 11. Nf3 O-O-O) 11. Qxc5 $11 {[%emt 0:01:16]} Bxc5 {[%emt 0:00:05]} 12. Nc3 {[%emt 0:00:05]} O-O {[%emt 0:04:26]} 13. Bxc7 {[%emt 0:03:52]} h6 {[%emt 0:03:45]} 14. Nf3 {[%emt 0:01:43]} Bxc2 {[%emt 0:02:19] [#]} 15. Ne1 $146 {[%emt 0:20:13]} ({Predecessor:} 15. Be5 Bd3+ 16. Kg1 Ne4 17. Nxe4 Bxe4 18. d6 Bxf3 19. gxf3 Rae8 20. Bg3 f5 21. Rc1 {½-½ (44) Nielsen,L (2234)-Longson,S (2117) Cardiff 2016}) 15... Bf5 {[%emt 0:05:21]} 16. Rd1 {[%emt 0:02:17]} Ne8 {[%emt 0:09:46][%mdl 1024] Black has compensation.} 17. Bg3 {[%emt 0:05:01]} Rd8 {[%emt 0:01:17]} 18. Nd3 {[%emt 0:07:28]} Bb6 {[%emt 0:03:35] A strong pair of Bishops.} (18... Bd4 $5 {[%cal Rd4c3]}) 19. f3 {[%emt 0:05:33]} Nf6 {[%emt 0:04:12]} 20. d6 {[%emt 0:02:48]} Rfe8 {[%emt 0:14:39]} 21. Nf4 {[%emt 0:04:28]} Kf8 {[%emt 0:03:44]} 22. Bf2 {[%emt 0:04:04]} g5 {[%emt 0:02:40]} 23. Bxb6 {[%emt 0:12:50]} axb6 {[%emt 0:00:05]} 24. Nfd5 {[%emt 0:02:04]} (24. Nfe2 $16) 24... Rxd6 {[%emt 0:00:39]} 25. Nxf6 {[%emt 0:00:09]} Rxf6 {[%emt 0:00:37]} 26. Kf2 {[%emt 0:00:21] Weighted Error Value: White=0.16 (very precise) /Black=0.15 (very precise)} 1/2-1/2

[Event "101st Irish Championship 2022"]
[Site "Dublin"]
[Date "2022.07.05"]
[Round "1.5"]
[White "Pang, Khai Jie Ryan"]
[Black "Fox, Anthony"]
[Result "1-0"]
[ECO "C77"]
[WhiteElo "1841"]
[BlackElo "1945"]
[Annotator "TA"]
[PlyCount "113"]
[EventDate "2022.07.05"]
[EventType "swiss"]
[EventCountry "IRL"]
[SourceTitle "playchess.com"]
[Source "ChessBase"]
[SourceQuality "1"]
[TimeControl "40/6300+30:1800+30"]

{[%evp 16,113,5,0,24,22,22,17,46,50,43,43,46,39,47,30,40,42,60,62,59,61,149,161,160,155,166,155,204,191,217,170,178,139,252,263,251,197,215,221,218,199,217,203,203,209,326,280,265,271,279,221,297,240,236,253,323,260,266,204,347,347,297,225,448,424,556,572,482,478,1099,1118,1796,1830,1804,1703,2043,1639,1697,1604,2032,1577,1798,1211,2272,2046,1410,1350,2580,2427,1429,1225,29985,29986,29986,29987,29987,29988,29988,29989]} 1. e4 {[%emt 0:00:07]} e5 {[%emt 0:00:22]} 2. Nf3 {[%emt 0:00:32]} Nc6 {[%emt 0:00:08]} 3. Bb5 {[%emt 0:01:15][%cal Bf1b5,Bb5a4,Ba4b3,Bb3a2,Ba2d5][%mdl 32]} a6 {[%emt 0:00:09]} 4. Ba4 {[%emt 0:00:23]} Nf6 {[%emt 0:00:09]} 5. O-O {[%emt 0:00:31]} Be7 {[%emt 0:00:06]} 6. d3 {[%emt 0:00:43]} b5 {[%emt 0:00:40]} 7. Bb3 {[%emt 0:00:08]} d6 {[%emt 0:00:30]} 8. a3 {[%emt 0:01:31][%cal Ba2a3,Ba3b4][%mdl 32]} O-O {[%emt 0:02:23]} 9. Nc3 {[%emt 0:00:20]} Na5 {[%emt 0:11:47] C77: Ruy Lopez: 3...a6 4 Ba4 Nf6, unusual lines.} 10. Ba2 {[%emt 0:00:30]} c5 {[%emt 0:00:10]} 11. b4 {[%emt 0:02:38]} cxb4 {[%emt 0:02:22] The position is equal.} 12. axb4 {[%emt 0:00:16]} Nc6 {[%emt 0:00:27]} 13. Nd5 {[%emt 0:00:28]} Nxd5 {[%emt 0:03:56]} 14. Bxd5 {[%emt 0:00:36]} Qc7 {[%emt 0:02:54]} 15. h3 {[%emt 0:15:20]} Bb7 {[%emt 0:03:14]} 16. Bd2 {[%emt 0:03:01] [#]} Nd8 $146 {[%emt 0:13:29]} ({Predecessor:} 16... Bf6 17. c4 Ne7 18. Qb3 Nxd5 19. cxd5 Be7 20. Rfc1 Qd7 21. Rc2 Rfc8 22. Rac1 Rxc2 23. Rxc2 {½-½ (71) Schramm,B (2126)-Nadig,K (2237) Gibraltar 2006}) 17. c4 {[%emt 0:05:20] And now cxb5 would win.} Ne6 {[%emt 0:07:20]} 18. Qb3 {[%emt 0:05:58]} Bxd5 {[%emt 0:20:01]} (18... Qd7 $14) 19. cxd5 $16 {[%emt 0:02:46]} (19. exd5 $6 Nf4 $14) 19... Nf4 {[%emt 0:03:27]} 20. Bxf4 {[%emt 0:03:48]} exf4 {[%emt 0:00:07]} 21. Rfc1 {[%emt 0:01:19]} Qd7 {[%emt 0:00:48]} (21... Qd8 $16 22. Ra5 Qd7) 22. Rc6 $18 {[%emt 0:01:58]} Rfc8 {[%emt 0:03:12]} 23. Rac1 {[%emt 0:04:29]} h6 {[%emt 0:03:25]} 24. Nd4 {[%emt 0:10:31]} Rxc6 {[%emt 0:03:44]} (24... g6 $16 {was necessary.} 25. Rxc8+ Rxc8) 25. dxc6 {[%emt 0:01:33]} Qc7 {[%emt 0:00:24]} 26. Qd5 {[%emt 0:01:15]} g6 {[%emt 0:00:41]} 27. f3 {[%emt 0:07:57]} Rb8 {[%emt 0:01:05]} 28. Ne2 {[%emt 0:03:39]} Bg5 {[%emt 0:00:47]} 29. d4 {[%emt 0:00:48][%cal Bd3d4,Bd4d5][%mdl 32]} Kg7 {[%emt 0:01:07]} 30. Qa2 {[%emt 0:01:24]} Rb6 {[%emt 0:05:02]} (30... Qb6 $142 31. Kh1 (31. c7 Rc8 $18) 31... Rc8) 31. d5 {[%emt 0:01:15]} Bf6 {[%emt 0:02:20]} 32. Qd2 {[%emt 0:00:39]} ({Don't take} 32. Nxf4 $6 Bd4+ 33. Kf1 Be3 $16) 32... Rb8 {[%emt 0:01:27]} 33. Kh1 {[%emt 0:01:23]} ({Not} 33. Qxf4 Bg5 34. Qg3 Be3+ 35. Kh2 Bxc1 36. Nxc1 Qe7 $16) 33... g5 {[%emt 0:05:12]} 34. Nd4 {[%emt 0:10:57]} Bxd4 {[%emt 0:01:50]} 35. Qxd4+ {[%emt 0:00:16][%mdl 4096] Endgame KQR-KQR} f6 {[%emt 0:00:10]} 36. Ra1 {[%emt 0:01:14]} Ra8 {[%emt 0:00:24]} 37. Ra5 {[%emt 0:00:46]} Qa7 {[%emt 0:03:25]} (37... Kf7 $142 38. Ra1 Kg6) 38. Qxa7+ {[%emt 0:01:29]} Rxa7 {[%emt 0:00:07] KR-KR} 39. g3 {[%emt 0:00:25]} fxg3 $2 {[%emt 0:01:27] [#]} (39... h5 40. Kg2 Kf7) 40. Kg2 {[%emt 0:00:15]} h5 {[%emt 0:02:32]} 41. Kxg3 {[%emt 0:30:22]} Kg6 {[%emt 0:30:20]} 42. f4 {[%emt 0:02:06]} Kh6 {[%emt 0:05:43]} (42... Kf7 $142 43. Ra2 Ra8) 43. Kf3 {[%emt 0:00:49]} gxf4 {[%emt 0:02:24]} 44. Kxf4 {[%emt 0:00:23]} Kg6 {[%emt 0:00:17]} 45. Ra2 {[%emt 0:05:30]} Ra8 {[%emt 0:05:41]} 46. Ra3 {[%emt 0:00:19]} Ra7 {[%emt 0:00:19]} 47. Ra1 {[%emt 0:00:11]} Ra8 {[%emt 0:00:17]} 48. Rc1 {[%emt 0:01:04]} Rc8 {[%emt 0:00:57]} 49. c7 {[%emt 0:00:25]} Kf7 {[%emt 0:00:00]} 50. Kf5 {[%emt 0:00:00]} Ke7 {[%emt 0:00:00]} 51. Kg6 {[%emt 0:00:00]} h4 {[%emt 0:00:00]} 52. Kg7 {[%emt 0:00:00]} Kd7 {[%emt 0:00:00]} 53. Kxf6 {[%emt 0:00:00]} Rxc7 {[%emt 0:00:00]} 54. Rxc7+ {[%emt 0:00:00] White mates.} Kxc7 {[%emt 0:00:00]} 55. Ke7 {[%emt 0:00:00]} a5 {[%emt 0:00:00]} 56. e5 {[%emt 0:00:00]} dxe5 {[%emt 0:00:00]} 57. d6+ {[%emt 0:00:00] Weighted Error Value: White=0.13 (very precise) /Black=0.45} 1-0